fUST/lending_fUST_20250930
["ID","MTS","AMOUNT","RATE_DAILY","PERIOD"]
[388446278,1759171842460,-480.0,0.00023322,2]
[388446279,1759171842469,-521.85954466,0.00023322,2]
[388446280,1759171842479,-480.0,0.00023322,2]
[388446281,1759171842488,-480.0,0.00023322,2]
[388446282,1759171842497,-480.0,0.00023322,2]
[388446283,1759171842506,-480.0,0.00023322,2]
[388446284,1759171842516,-480.0,0.00023322,2]
[388446285,1759171842525,-480.0,0.00023322,2]
[388446286,1759171842534,-480.0,0.00023322,2]
[388446287,1759171842544,-480.0,0.00023322,2]
[388446288,1759171842554,-480.0,0.00023322,2]
[388446289,1759171842563,-504.01,0.00023322,2]
[388446290,1759171842573,-480.0,0.00023322,2]
[388446291,1759171842582,-480.0,0.00023322,2]
[388446292,1759171842591,-480.0,0.00023322,2]
[388446293,1759171842600,-521.75,0.00023322,2]
[388446294,1759171842609,-480.0,0.00023322,2]
[388446295,1759171842620,-500.0,0.00023322,2]
[388446296,1759171842629,-480.0,0.00023322,2]
[388446297,1759171842639,-480.0,0.00023322,2]
[388446298,1759171842650,-480.0,0.00023322,2]
[388446299,1759171842661,-480.0,0.00023322,2]
[388446300,1759171842671,-518.41,0.00023322,2]
[388446301,1759171842684,-503.2,0.00023322,2]
[388446302,1759171842694,-480.0,0.00023322,2]
[388446303,1759171842703,-480.0,0.00023322,2]
[388446304,1759171842712,-480.0,0.00023322,2]
[388446305,1759171842723,-480.0,0.00023322,2]
[388446306,1759171842733,-480.0,0.00023322,2]
[388446307,1759171842742,-480.0,0.00023322,2]
[388446308,1759171842752,-480.0,0.00023322,2]
[388446309,1759171842762,-534.25,0.00023322,2]
[388446310,1759171842771,-509.43,0.00023322,2]
[388446311,1759171842780,-480.0,0.00023322,2]
[388446312,1759171842789,-480.0,0.00023322,2]
[388446313,1759171842798,-516.00855954,0.00023322,2]
[388446314,1759171842807,-480.0,0.00023322,2]
[388446315,1759171842816,-1348.55,0.00023322,2]
[388446316,1759171842828,-480.0,0.00023322,2]
[388446317,1759171842837,-480.0,0.00023322,2]
[388446318,1759171842847,-219.5273721,0.00023322,2]
[388446319,1759171842856,-480.0,0.00023322,2]
[388446320,1759171842865,-480.0,0.00023322,2]
[388446321,1759171842874,-480.0,0.00023322,2]
[388446322,1759171842883,-480.0,0.00023322,2]
[388446323,1759171842892,-387.84086418,0.00023322,2]
[388446324,1759171842902,-480.0,0.00023322,2]
[388446325,1759171842911,-1068.84,0.00023322,2]
[388446326,1759171842921,-480.0,0.00023322,2]
[388446327,1759171842931,-480.0,0.00023322,2]
[388446329,1759171842940,-480.0,0.00023322,2]
[388446331,1759171842950,-480.15,0.00023322,2]
[388446333,1759171842960,-481.46797865,0.00023322,2]
[388446335,1759171842969,-884.49,0.00023322,2]
[388446336,1759171842978,-480.0,0.00023322,2]
[388446339,1759171842988,-474.14777006,0.00023322,2]
[388446340,1759171842997,-480.0,0.00023322,2]
[388446342,1759171843007,-480.0,0.00023322,2]
[388446344,1759171843017,-480.0,0.00023322,2]
[388446346,1759171843026,-480.0,0.00023322,2]
[388446348,1759171843035,-480.0,0.00023322,2]
[388446350,1759171843046,-480.0,0.00023322,2]
[388446353,1759171843056,-480.0,0.00023322,2]
[388446355,1759171843067,-480.0,0.00023322,2]
[388446357,1759171843077,-480.0,0.00023322,2]
[388446359,1759171843086,-480.0,0.00023322,2]
[388446360,1759171843096,-480.0,0.00023322,2]
[388446362,1759171843107,-539.59,0.00023322,2]
[388446364,1759171843117,-480.0,0.00023322,2]
[388446366,1759171843127,-480.0,0.00023322,2]
[388446368,1759171843138,-480.0,0.00023322,2]
[388446370,1759171843148,-593.24745115,0.00023322,2]
[388446373,1759171843157,-480.0,0.00023322,2]
[388446376,1759171843167,-1000.0,0.00023322,2]
[388446379,1759171843177,-1000.0,0.00023322,2]
[388446382,1759171843187,-480.0,0.00023322,2]
[388446385,1759171843196,-1000.0,0.00023322,2]
[388446388,1759171843206,-483.4272956,0.00023322,2]
[388446390,1759171843215,-480.0,0.00023322,2]
[388446393,1759171843224,-480.0,0.00023322,2]
[388446396,1759171843234,-480.0,0.00023322,2]
[388446399,1759171843243,-553.67,0.00023322,2]
[388446401,1759171843253,-480.0,0.00023322,2]
[388446403,1759171843262,-480.0,0.00023322,2]
[388446405,1759171843272,-480.0,0.00023322,2]
[388446407,1759171843281,-480.0,0.00023322,2]
[388446409,1759171843291,-480.0,0.00023322,2]
[388446411,1759171843300,-480.0,0.00023322,2]
[388446413,1759171843310,-318.58338537,0.00023322,2]
[388446415,1759171843319,-498.12,0.00023322,2]
[388446417,1759171843329,-482.26776614,0.00023322,2]
[388446419,1759171843340,-480.0,0.00023322,2]
[388446421,1759171843348,-480.0,0.00023322,2]
[388446423,1759171843358,-565.81,0.00023322,2]
[388446425,1759171843367,-480.0,0.00023322,2]
[388446427,1759171843376,-480.0,0.00023322,2]
[388446429,1759171843386,-480.0,0.00023322,2]
[388446431,1759171843396,-480.0,0.00023322,2]
[388446432,1759171843406,-168.0,0.00023338,2]
[388446434,1759171843415,-168.0,0.00023358,2]
[388446436,1759171843425,-480.0,0.00023395,2]
[388446437,1759171843435,-480.0,0.00023395,2]
[388446439,1759171843444,-530.15,0.00023395,2]
[388446441,1759171843453,-480.0,0.00023395,2]
[388446443,1759171843463,-501.07,0.00023395,2]
[388446445,1759171843472,-151.0,0.000234,7]
[388446448,1759171843481,-480.0,0.00023406,2]
[388446450,1759171843490,-876.36,0.00023406,2]
[388446453,1759171843499,-480.0,0.00023406,2]
[388446455,1759171843508,-480.0,0.00023406,2]
[388446457,1759171843517,-480.0,0.00023406,2]
[388446459,1759171843526,-584.51,0.00023406,2]
[388446461,1759171843536,-480.0,0.00023406,2]
[388446463,1759171843545,-480.0,0.00023406,2]
[388446464,1759171843554,-480.0,0.00023406,2]
[388446466,1759171843563,-480.0,0.00023406,2]
[388446468,1759171843573,-480.0,0.00023406,2]
[388446470,1759171843582,-617.35,0.00023406,2]
[388446472,1759171843591,-480.0,0.00023406,2]
[388446474,1759171843601,-480.0,0.00023406,2]
[388446476,1759171843610,-587.78,0.00023406,2]
[388446478,1759171843620,-480.0,0.00023406,2]
[388446480,1759171843629,-480.0,0.00023406,2]
[388446482,1759171843639,-480.0,0.00023406,2]
[388446484,1759171843649,-480.0,0.00023406,2]
[388446486,1759171843660,-383.21505219,0.00023406,2]
[388446488,1759171843670,-480.0,0.00023406,2]
[388446490,1759171843682,-586.01,0.00023406,2]
[388446492,1759171843692,-480.0,0.00023406,2]
[388446494,1759171843701,-617.24,0.00023406,2]
[388446496,1759171843711,-515.68,0.00023406,2]
[388446498,1759171843721,-480.0,0.00023406,2]
[388446500,1759171843730,-480.0,0.00023406,2]
[388446502,1759171843739,-557.09,0.00023406,2]
[388446504,1759171843749,-480.0,0.00023406,2]
[388446506,1759171843759,-480.0,0.00023406,2]
[388446508,1759171843768,-480.0,0.00023406,2]
[388446509,1759171843777,-480.0,0.00023406,2]
[388446511,1759171843787,-580.68,0.00023406,2]
[388446513,1759171843796,-480.0,0.00023406,2]
[388446515,1759171843805,-615.8,0.00023406,2]
[388446516,1759171843833,-679.84,0.00023406,2]
[388446517,1759171843843,-480.0,0.00023406,2]
[388446518,1759171843852,-480.0,0.00023406,2]
[388446519,1759171843861,-480.0,0.00023406,2]
[388446520,1759171843871,-990.97,0.00023406,2]
[388446521,1759171843881,-3543.25,0.00023406,2]
[388446522,1759171843890,-480.0,0.00023406,2]
[388446523,1759171843899,-2242.37,0.00023406,2]
[388446524,1759171843908,-480.0,0.00023406,2]
[388446525,1759171843918,-567.75143692,0.00023406,2]
[388446526,1759171843928,-480.0,0.00023406,2]
[388446527,1759171843938,-722.76,0.00023406,2]
[388446528,1759171843947,-480.0,0.00023406,2]
[388446529,1759171843957,-480.0,0.00023406,2]
[388446530,1759171843967,-480.0,0.00023406,2]
[388446531,1759171843978,-1404.75,0.00023406,2]
[388446532,1759171843988,-480.0,0.00023406,2]
[388446533,1759171843997,-480.0,0.00023406,2]
[388446534,1759171844007,-3841.25,0.00023406,2]
[388446535,1759171844017,-480.0,0.00023406,2]
[388446536,1759171844027,-480.0,0.00023406,2]
[388446537,1759171844037,-480.0,0.00023406,2]
[388446538,1759171844047,-921.68,0.00023406,2]
[388446539,1759171844058,-480.0,0.00023406,2]
[388446540,1759171844067,-480.0,0.00023406,2]
[388446541,1759171844077,-1065.39,0.00023406,2]
[388446542,1759171844088,-485.42,0.00023406,2]
[388446543,1759171844098,-480.0,0.00023406,2]
[388446544,1759171844109,-480.0,0.00023406,2]
[388446545,1759171844119,-1928.93,0.00023406,2]
[388446546,1759171844128,-480.0,0.00023406,2]
[388446547,1759171844138,-500.0,0.00023406,2]
[388446548,1759171844148,-416.00029861,0.0002343,2]
[388446549,1759171844160,-1614.03815695,0.0002343,2]
[388446550,1759171844171,-3627.95426728,0.0002343,2]
[388446551,1759171844180,-910.73649991,0.0002343,2]
[388446552,1759171844192,-2512.05668464,0.00023445,2]
[388446553,1759171844204,-480.0,0.00023491,2]
[388446554,1759171844215,-480.0,0.00023491,2]
[388446555,1759171844224,-480.0,0.00023491,2]
[388446556,1759171844233,-480.0,0.00023491,2]
[388446558,1759171844242,-2590.09,0.00023491,2]
[388446560,1759171844251,-480.0,0.00023491,2]
[388446561,1759171844261,-621.86,0.00023491,2]
[388446563,1759171844271,-872.5,0.00023491,2]
[388446565,1759171844280,-1327.41,0.00023491,2]
[388446567,1759171844290,-480.0,0.00023491,2]
[388446569,1759171844300,-480.0,0.00023491,2]
[388446571,1759171844309,-990.14,0.00023491,2]
[388446573,1759171844319,-1087.16,0.00023491,2]
[388446575,1759171844329,-495.32,0.00023491,2]
[388446577,1759171844338,-480.0,0.00023491,2]
[388446579,1759171844348,-1936.44,0.00023491,2]
[388446581,1759171844357,-480.0,0.00023491,2]
[388446583,1759171844367,-2118.24,0.00023491,2]
[388446585,1759171844378,-644.99,0.00023491,2]
[388446587,1759171844388,-509.35,0.00023491,2]
[388446589,1759171844398,-763.8,0.00023491,2]
[388446591,1759171844407,-571.89353867,0.00023491,2]
[388446593,1759171844417,-1431.6,0.00023491,2]
[388446595,1759171844427,-553.2,0.00023491,2]
[388446597,1759171844437,-1319.37,0.00023491,2]
[388446599,1759171844447,-2024.79,0.00023491,2]
[388446601,1759171844456,-8848.27,0.00023491,2]
[388446603,1759171844465,-480.0,0.00023491,2]
[388446605,1759171844475,-480.0,0.00023491,2]
[388446607,1759171844485,-2185.27,0.00023491,2]
[388446609,1759171844495,-571.63,0.00023491,2]
[388446611,1759171844506,-480.0,0.00023492,2]
[388446613,1759171844517,-480.0,0.00023492,2]
[388446615,1759171844527,-480.0,0.00023492,2]
[388446617,1759171844536,-509.71,0.00023492,2]
[388446619,1759171844545,-590.71,0.00023492,2]
[388446620,1759171844555,-624.47,0.00023492,2]
[388446621,1759171844565,-480.0,0.00023492,2]
[388446622,1759171844575,-1401.02,0.00023492,2]
[388446623,1759171844585,-982.14,0.00023492,2]
[388446624,1759171844595,-743.17,0.00023492,2]
[388446625,1759171844605,-480.0,0.00023492,2]
[388446626,1759171844615,-1220.88,0.00023492,2]
[388446627,1759171844626,-480.0,0.00023492,2]
[388446628,1759171844636,-480.0,0.00023492,2]
[388446629,1759171844646,-559.39,0.00023492,2]
[388446630,1759171844656,-892.41,0.00023492,2]
[388446631,1759171844667,-480.0,0.00023492,2]
[388446632,1759171844679,-480.0,0.00023492,2]
[388446633,1759171844690,-679.73,0.00023492,2]
[388446634,1759171844699,-762.89,0.00023492,2]
[388446635,1759171844709,-656.98,0.00023492,2]
[388446636,1759171844720,-480.0,0.00023492,2]
[388446637,1759171844730,-506.43,0.00023492,2]
[388446638,1759171844739,-749.41,0.00023492,2]
[388446639,1759171844749,-480.0,0.00023492,2]
[388446640,1759171844760,-587.98,0.00023492,2]
[388446641,1759171844770,-493.17,0.00023492,2]
[388446642,1759171844779,-796.02,0.00023492,2]
[388446643,1759171844789,-480.0,0.00023493,2]
[388446644,1759171844799,-480.0,0.00023493,2]
[388446645,1759171844809,-510.06,0.00023493,2]
[388446646,1759171844819,-480.0,0.00023493,2]
[388446647,1759171844829,-1132.4,0.00023493,2]
[388446648,1759171844839,-480.0,0.00023493,2]
[388446649,1759171844849,-483.49,0.00023493,2]
[388446650,1759171844859,-480.0,0.00023493,2]
[388446651,1759171844868,-480.0,0.00023493,2]
[388446652,1759171844878,-480.0,0.00023493,2]
[388446653,1759171844888,-991.48,0.00023493,2]
[388446654,1759171844898,-1021.84,0.00023493,2]
[388446655,1759171844908,-480.0,0.00023493,2]
[388446656,1759171844918,-480.0,0.00023493,2]
[388446657,1759171844928,-480.0,0.00023493,2]
[388446658,1759171844938,-581.06,0.00023493,2]
[388446659,1759171844947,-533.7,0.00023493,2]
[388446660,1759171844957,-538.63,0.00023493,2]
[388446661,1759171844968,-688.29,0.00023493,2]
[388446662,1759171844978,-480.0,0.00023493,2]
[388446663,1759171844989,-518.74,0.00023493,2]
[388446664,1759171844999,-480.0,0.00023493,2]
[388446665,1759171845011,-922.87,0.00023493,2]
[388446666,1759171845022,-830.42,0.00023493,2]
[388446667,1759171845033,-480.0,0.00023493,2]
[388446668,1759171845044,-539.27,0.00023493,2]
[388446669,1759171845055,-868.72,0.00023493,2]
[388446670,1759171845065,-480.0,0.00023493,2]
[388446671,1759171845075,-2029.33,0.00023493,2]
[388446672,1759171845085,-480.0,0.00023493,2]
[388446673,1759171845096,-480.0,0.00023493,2]
[388446674,1759171845108,-480.0,0.00023493,2]
[388446675,1759171845118,-1700.34,0.00023493,2]
[388446676,1759171845128,-791.39,0.00023493,2]
[388446677,1759171845138,-993.49,0.00023493,2]
[388446678,1759171845148,-1232.98,0.00023493,2]
[388446679,1759171845159,-480.0,0.00023493,2]
[388446680,1759171845168,-480.0,0.00023493,2]
[388446681,1759171845179,-1164.27,0.00023493,2]
[388446682,1759171845191,-1125.49,0.00023493,2]
[388446683,1759171845202,-215.55251,0.00023493,2]
[388446684,1759171845212,-480.0,0.00023493,2]
[388446685,1759171845224,-544.49,0.00023493,2]
[388446686,1759171845234,-4680.36,0.00023493,2]
[388446687,1759171845245,-1114.44,0.00023493,2]
[388446688,1759171845255,-480.0,0.00023493,2]
[388446689,1759171845265,-480.0,0.00023493,2]
[388446690,1759171845275,-2154.79,0.00023493,2]
[388446691,1759171845285,-483.11,0.00023493,2]
[388446692,1759171845296,-480.0,0.00023493,2]
[388446693,1759171845307,-611.34,0.00023493,2]
[388446694,1759171845317,-1958.8,0.00023493,2]
[388446695,1759171845328,-1078.08,0.00023493,2]
[388446696,1759171845340,-488.09,0.00023493,2]
[388446697,1759171845350,-624.32,0.00023493,2]
[388446698,1759171845360,-4810.67,0.00023493,2]
[388446699,1759171845370,-912.49,0.00023493,2]
[388446700,1759171845380,-714.5,0.00023493,2]
[388446701,1759171845391,-2099.73,0.00023493,2]
[388446702,1759171845402,-794.71,0.00023493,2]
[388446703,1759171845412,-2450.52,0.00023493,2]
[388446704,1759171845422,-559.59,0.00023493,2]
[388446705,1759171845432,-679.03,0.00023493,2]
[388446706,1759171845441,-765.47,0.00023493,2]
[388446707,1759171845451,-480.0,0.00023493,2]
[388446708,1759171845460,-5661.38,0.00023493,2]
[388446709,1759171845470,-1832.62,0.00023493,2]
[388446710,1759171845480,-1430.2,0.00023493,2]
[388446711,1759171845490,-1267.06,0.00023493,2]
[388446712,1759171845499,-1037.8,0.00023493,2]
[388446713,1759171845510,-500.0,0.00023493,2]
[388446714,1759171845520,-480.0,0.00023493,2]
[388446715,1759171845529,-482.22,0.00023494,2]
[388446716,1759171845539,-480.0,0.00023494,2]
[388446717,1759171845549,-480.0,0.00023494,2]
[388446718,1759171845559,-480.0,0.00023494,2]
[388446719,1759171845568,-480.0,0.00023494,2]
[388446720,1759171845578,-174.66757281,0.00023494,2]
[388446721,1759171845590,-480.0,0.00023494,2]
[388446722,1759171845600,-480.0,0.00023494,2]
[388446723,1759171845611,-492.69,0.00023494,2]
[388446724,1759171845624,-480.0,0.00023494,2]
[388446725,1759171845634,-155.0,0.00023495,2]
[388446726,1759171845644,-348.96976665,0.00023496,2]
[388446727,1759171845655,-480.0,0.00023496,2]
[388446728,1759171845664,-734.74,0.00023496,2]
[388446729,1759171845674,-480.0,0.00023496,2]
[388446730,1759171845689,-480.0,0.00023496,2]
[388446731,1759171845700,-714.9,0.00023496,2]
[388446732,1759171845709,-480.0,0.00023496,2]
[388446733,1759171845720,-480.0,0.00023496,2]
[388446734,1759171845730,-480.0,0.00023496,2]
[388446735,1759171845741,-480.0,0.00023496,2]
[388446736,1759171845752,-637.88,0.00023496,2]
[388446737,1759171845765,-1241.44,0.00023496,2]
[388446738,1759171845775,-480.0,0.00023496,2]
[388446739,1759171845785,-511.16,0.00023496,2]
[388446740,1759171845795,-480.0,0.00023496,2]
[388446741,1759171845806,-521.8,0.00023496,2]
[388446742,1759171845817,-480.0,0.00023496,2]
[388446743,1759171845827,-480.0,0.00023496,2]
[388446744,1759171845838,-480.0,0.00023496,2]
[388446745,1759171845848,-638.47,0.00023496,2]
[388446746,1759171845858,-480.0,0.00023496,2]
[388446747,1759171845869,-480.0,0.00023496,2]
[388446748,1759171845879,-480.0,0.00023496,2]
[388446749,1759171845889,-480.0,0.00023496,2]
[388446750,1759171845899,-480.0,0.00023496,2]
[388446751,1759171845909,-480.0,0.00023496,2]
[388446752,1759171845919,-480.0,0.00023496,2]
[388446753,1759171845930,-633.29,0.00023496,2]
[388446754,1759171845939,-480.0,0.00023496,2]
[388446755,1759171845950,-553.89,0.00023496,2]
[388446756,1759171845959,-480.0,0.00023496,2]
[388446757,1759171845969,-574.71,0.00023496,2]
[388446758,1759171845980,-480.0,0.00023496,2]
[388446759,1759171845990,-559.55,0.00023496,2]
[388446760,1759171846000,-480.0,0.00023496,2]
[388446761,1759171846010,-480.0,0.00023496,2]
[388446763,1759171846021,-480.0,0.00023496,2]
[388446764,1759171846031,-519.22,0.00023496,2]
[388446765,1759171846041,-2201.83,0.00023496,2]
[388446766,1759171846051,-480.0,0.00023496,2]
[388446767,1759171846061,-565.58,0.00023496,2]
[388446768,1759171846071,-554.02,0.00023496,2]
[388446769,1759171846081,-730.49,0.00023496,2]
[388446770,1759171846091,-151.0,0.000235,8]
[388446772,1759171846103,-151.0,0.000235,10]
[388446773,1759171846112,-480.0,0.00023506,2]
[388446774,1759171846123,-480.0,0.00023506,2]
[388446775,1759171846133,-480.0,0.00023506,2]
[388446776,1759171846143,-480.0,0.00023507,2]
[388446777,1759171846153,-480.0,0.00023507,2]
[388446778,1759171846163,-480.0,0.00023507,2]
[388446780,1759171846172,-480.0,0.00023507,2]
[388446781,1759171846183,-554.13,0.00023507,2]
[388446782,1759171846193,-480.0,0.00023507,2]
[388446783,1759171846203,-480.0,0.00023507,2]
[388446784,1759171846214,-480.0,0.00023507,2]
[388446785,1759171846224,-2007.23,0.00023507,2]
[388446786,1759171846234,-868.33,0.00023507,2]
[388446787,1759171846243,-650.1,0.00023507,2]
[388446789,1759171846253,-674.75,0.00023507,2]
[388446790,1759171846263,-651.6,0.00023507,2]
[388446791,1759171846273,-2054.43,0.00023507,2]
[388446792,1759171846283,-633.17,0.00023507,2]
[388446793,1759171846293,-652.74,0.00023507,2]
[388446795,1759171846304,-563.29,0.00023507,2]
[388446797,1759171846313,-480.0,0.00023507,2]
[388446799,1759171846324,-627.86,0.00023507,2]
[388446800,1759171846333,-1229.82,0.00023507,2]
[388446801,1759171846343,-480.0,0.00023507,2]
[388446802,1759171846352,-580.84,0.00023507,2]
[388446803,1759171846362,-706.69,0.00023507,2]
[388446804,1759171846372,-480.0,0.00023507,2]
[388446805,1759171846382,-322.84370101,0.00023507,2]
[388446806,1759171846392,-750.87,0.00023507,2]
[388446807,1759171846402,-1163.19,0.00023507,2]
[388446808,1759171846411,-224.17328258,0.00023507,2]
[388446810,1759171846420,-480.0,0.00023507,2]
[388446811,1759171846430,-480.0,0.00023507,2]
[388446812,1759171846439,-5103.93684328,0.00023508,2]
[388446813,1759171846448,-168.0,0.00023568,2]
[388446814,1759171846457,-480.0,0.00023596,2]
[388446815,1759171846467,-480.0,0.00023596,2]
[388446816,1759171846476,-480.0,0.00023596,2]
[388446817,1759171846485,-480.0,0.00023596,2]
[388446818,1759171846495,-611.62,0.00023596,2]
[388446819,1759171846504,-751.95,0.00023596,2]
[388446820,1759171846514,-938.11,0.00023596,2]
[388446822,1759171846524,-559.24,0.00023596,2]
[388446823,1759171846534,-538.08,0.00023596,2]
[388446824,1759171846543,-480.0,0.00023596,2]
[388446827,1759171846553,-480.0,0.00023596,2]
[388446828,1759171846746,-480.0,0.00023596,2]
[388446829,1759171846757,-480.0,0.00023596,2]
[388446830,1759171846767,-480.0,0.00023596,2]
[388446831,1759171846779,-480.0,0.00023596,2]
[388446832,1759171846788,-480.0,0.00023596,2]
[388446833,1759171846798,-480.0,0.00023596,2]
[388446834,1759171846808,-480.0,0.00023596,2]
[388446835,1759171846818,-504.01,0.00023596,2]
[388446836,1759171846827,-480.0,0.00023596,2]
[388446837,1759171846838,-480.0,0.00023596,2]
[388446838,1759171846848,-480.0,0.00023596,2]
[388446840,1759171846857,-521.75,0.00023596,2]
[388446842,1759171846867,-480.0,0.00023596,2]
[388446844,1759171846876,-500.0,0.00023596,2]
[388446846,1759171846886,-480.0,0.00023596,2]
[388446848,1759171846896,-480.0,0.00023596,2]
[388446851,1759171846905,-480.0,0.00023596,2]
[388446852,1759171846915,-480.0,0.00023596,2]
[388446853,1759171846924,-518.41,0.00023596,2]
[388446854,1759171846934,-503.2,0.00023596,2]
[388446855,1759171846944,-512.44875407,0.00023596,2]
[388446856,1759171846953,-480.0,0.00023596,2]
[388446857,1759171846963,-480.0,0.00023596,2]
[388446858,1759171846973,-480.0,0.00023596,2]
[388446859,1759171846982,-480.0,0.00023596,2]
[388446860,1759171846993,-534.25,0.00023596,2]
[388446861,1759171847003,-509.43,0.00023596,2]
[388446862,1759171847012,-480.0,0.00023596,2]
[388446863,1759171847022,-480.0,0.00023596,2]
[388446864,1759171847032,-480.0,0.00023596,2]
[388446865,1759171847042,-1348.55,0.00023596,2]
[388446866,1759171847051,-480.0,0.00023596,2]
[388446867,1759171847061,-480.0,0.00023596,2]
[388446868,1759171847071,-480.0,0.00023596,2]
[388446869,1759171847080,-1068.84,0.00023596,2]
[388446870,1759171847090,-480.0,0.00023596,2]
[388446871,1759171847099,-884.49,0.00023596,2]
[388446872,1759171847108,-480.0,0.00023596,2]
[388446873,1759171847118,-480.0,0.00023596,2]
[388446874,1759171847128,-480.0,0.00023596,2]
[388446875,1759171847138,-480.0,0.00023596,2]
[388446876,1759171847148,-480.0,0.00023596,2]
[388446877,1759171847158,-480.0,0.00023596,2]
[388446878,1759171847167,-480.0,0.00023596,2]
[388446879,1759171847177,-480.0,0.00023596,2]
[388446880,1759171847187,-480.0,0.00023596,2]
[388446881,1759171847196,-539.59,0.00023596,2]
[388446882,1759171847206,-480.0,0.00023596,2]
[388446883,1759171847215,-480.0,0.00023596,2]
[388446884,1759171847225,-480.0,0.00023596,2]
[388446885,1759171847234,-480.0,0.00023596,2]
[388446886,1759171847243,-553.67,0.00023596,2]
[388446887,1759171847252,-480.0,0.00023596,2]
[388446888,1759171847262,-480.0,0.00023596,2]
[388446889,1759171847271,-480.0,0.00023596,2]
[388446890,1759171847280,-480.0,0.00023596,2]
[388446891,1759171847290,-272.78391467,0.00023596,2]
[388446892,1759171847300,-419.14445693,0.00023596,2]
[388446893,1759171847309,-498.12,0.00023596,2]
[388446894,1759171847319,-480.0,0.00023596,2]
[388446895,1759171847329,-565.81,0.00023596,2]
[388446896,1759171847338,-480.0,0.00023596,2]
[388446897,1759171847348,-480.0,0.00023596,2]
[388446898,1759171847357,-480.0,0.00023596,2]
[388446899,1759171847366,-480.0,0.00023596,2]
[388446900,1759171847376,-151.0,0.000236,10]
[388446901,1759171847386,-2512.05668464,0.00023607,2]
[388446902,1759171847396,-500.0,0.00023612,2]
[388446903,1759171847406,-500.0,0.00023612,2]
[388446904,1759171847415,-164.93279931,0.00023612,2]
[388446905,1759171847424,-500.0,0.00023612,2]
[388446906,1759171847433,-501.15189891,0.00023612,2]
[388446907,1759171847443,-500.0,0.00023633,2]
[388446908,1759171847454,-500.0,0.00023633,2]
[388446909,1759171847463,-814.0,0.00023636,2]
[388446910,1759171847474,-248056.39434583,0.0002364,2]
[388446911,1759171847523,-134427.22675216,0.0002364,2]
[388446912,1759171847940,-0.02873864,0.00023209,10]
[388446913,1759171847952,-810.06126136,0.00023209,10]
[388446914,1759171847963,-281.49616388,0.00023219,2]
[388446915,1759171847973,-21501.99088261,0.0002364,2]
[388446916,1759171848128,-480.0,0.00023219,2]
[388446917,1759171848139,-613.0,0.0002364,2]
[388446918,1759171848298,-480.0,0.00023121,2]
[388446919,1759171848309,-472.68828644,0.00023132,2]
[388446920,1759171848318,-480.0,0.00023132,2]
[388446921,1759171848329,-480.0,0.00023406,2]
[388446922,1759171848339,-15627.49234183,0.0002364,2]
[388446923,1759171892373,184.86949194,0.00024932,30]